bitfinex/quotes_ETHUSD_20250529
["timestamp","ask_amount","ask_price","bid_price","bid_amount"]
[1748542468749,7.6870717,2670.2,2669.5,3.74600635]
[1748542469046,3.74534841,2670.0,2669.5,3.74600635]
[1748542469448,3.74522596,2670.1,2669.4,5.61161519]
[1748542469617,3.74522596,2670.1,2669.4,1.86550257]
[1748542469618,3.74521823,2670.1,2669.4,1.86550257]
[1748542469824,3.745403,2670.0,2669.5,3.74601664]
[1748542470225,3.74531937,2670.0,2669.5,3.7459507]
[1748542470959,3.74518781,2670.1,2669.4,5.61162332]
[1748542471133,3.745342,2670.0,2669.4,6.40298565]
[1748542471335,3.74518797,2670.1,2669.6,3.74581131]
[1748542471535,3.74537207,2670.0,2669.5,3.74599544]
[1748542472102,3.943,2670.1,2669.7,3.74566307]
[1748542472223,1.1917,2670.6,2669.9,0.2302]
[1748542472437,5.1347,2670.6,2669.9,3.97563291]
[1748542472666,3.74462153,2670.5,2670.0,3.74522202]
[1748542472923,3.744848,2670.4,2669.9,0.2302]
[1748542473128,3.74500219,2670.3,2669.9,0.2302]
[1748542473370,3.74498099,2670.3,2669.8,3.74558401]
[1748542473725,3.74477925,2670.4,2669.9,0.20512642]
[1748542473929,3.7451289,2670.2,2669.6,1.86550257]
[1748542474167,3.7451289,2670.2,2669.7,3.95093152]
[1748542474328,3.7451289,2670.2,2669.7,13.745716]
[1748542474658,3.74497287,2670.3,2669.8,3.95085479]
[1748542474891,3.7448985,2670.3,2669.9,3.95078685]
[1748542475051,3.74477942,2670.4,2669.9,3.74545117]
[1748542475454,3.74491482,2670.3,2669.8,3.74552656]
[1748542475653,3.943,2670.4,2669.7,3.74570568]
[1748542475954,7.68775888,2670.4,2669.8,0.20535655]
[1748542476199,3.74513005,2670.2,2669.9,0.20535715]
[1748542476381,3.943,2670.4,2669.7,10.58414082]
[1748542476382,3.74518689,2670.1,2669.7,10.58414082]
[1748542476703,3.74510544,2670.2,2669.8,0.20560726]
[1748542476990,3.74500085,2670.3,2669.9,0.20562825]
[1748542477199,7.68780737,2670.4,2670.0,0.20561742]
[1748542477412,7.68780737,2670.4,2669.7,0.58414082]
[1748542477413,3.943,2670.5,2670.1,0.43581742]
[1748542477708,3.74482827,2670.4,2670.2,0.20561804]
[1748542477899,3.74482827,2670.4,2669.9,3.9755926]
[1748542478105,3.74475733,2670.4,2670.0,0.20562053]
[1748542478389,3.74488638,2670.4,2669.9,3.97565529]
[1748542478620,3.74488638,2670.4,2670.0,0.20563139]
[1748542478749,3.74505263,2670.2,2669.9,0.2302]
[1748542478955,3.74505263,2670.2,2669.7,3.99256054]
[1748542479349,5.00723574,2670.4,2669.7,3.99256054]
[1748542479350,3.74490483,2670.3,2669.7,0.2469]
[1748542479557,5.00724347,2670.4,2669.7,3.99261847]
[1748542479865,5.00724347,2670.4,2669.8,3.7455471]
[1748542479866,3.74498365,2670.3,2669.8,3.7455471]
[1748542481396,8.95027994,2670.4,2669.7,3.99258314]
[1748542481592,3.74493148,2670.3,2669.8,3.74550961]
[1748542481990,3.74493148,2670.3,2669.9,0.20558091]
[1748542482202,3.74493148,2670.3,2670.0,0.20558152]
[1748542482416,3.74493148,2670.3,2670.1,0.2055807]
[1748542482620,3.74493148,2670.3,2669.8,3.74550961]
[1748542482811,3.74493148,2670.3,2669.9,0.2056074]
[1748542482992,5.01443349,2670.3,2670.0,0.2056074]
[1748542483181,3.74503782,2670.2,2670.1,0.20561951]
[1748542483520,1.26950201,2670.3,2669.5,3.99290675]
[1748542483521,5.01443338,2670.3,2669.5,3.99290675]
[1748542483815,3.74511803,2670.2,2669.7,3.74567935]
[1748542484015,5.04266163,2670.1,2669.8,0.20563657]
[1748542484178,6.04839228,2670.1,2669.9,0.20563657]
[1748542484378,6.04839228,2670.1,2669.7,3.74573563]
[1748542485227,2.30313065,2670.1,2669.7,3.74566886]
[1748542486031,2.30313065,2670.1,2669.7,3.74567629]
[1748542486190,1.2974,2670.1,2669.8,0.20591996]
[1748542486499,1.2974,2670.1,2669.9,0.20593243]
[1748542486704,1.2974,2670.1,2670.0,0.20601057]
[1748542487017,1.2974,2670.1,2670.0,0.20601295]
[1748542487018,5.04257808,2670.1,2670.0,0.20601295]
[1748542487325,1.2974,2670.1,2670.0,0.20600698]
[1748542487540,6.04827282,2670.1,2670.0,0.20600183]
[1748542487688,2.30309474,2670.1,2670.0,0.20600183]
[1748542487895,2.30309474,2670.1,2669.7,3.74573575]
[1748542488129,6.04829841,2670.1,2669.8,0.20611661]
[1748542488428,6.04832811,2670.1,2669.5,3.74594607]
[1748542488731,3.74537837,2670.0,2669.6,0.20625404]
[1748542489032,7.68837837,2670.0,2669.7,0.20628044]
[1748542489205,7.68837837,2670.0,2669.8,0.20628044]
[1748542489401,7.68837837,2670.0,2669.9,0.20628044]
[1748542489611,9.0620488,2670.0,2669.9,0.20628044]
[1748542489815,3.74552777,2669.9,2669.3,4.14677175]
[1748542490028,9.06204588,2670.0,2669.5,3.74593754]
[1748542490230,9.06204588,2670.0,2669.6,0.20642731]
[1748542490531,5.31667043,2670.0,2669.6,3.745837]
[1748542490829,7.68832311,2670.0,2669.6,3.745837]
[1748542491002,3.943,2670.0,2669.7,0.20659486]
[1748542491329,7.68832668,2670.0,2669.8,0.20658916]
[1748542491630,7.68832668,2670.0,2669.9,0.20658887]
[1748542491932,5.31665687,2670.0,2669.9,0.20658887]
[1748542492129,9.06197522,2670.0,2669.6,3.8621246]
[1748542492432,9.06207381,2670.0,2669.7,0.11628136]
[1748542492594,9.06207381,2670.0,2669.8,0.20682379]
[1748542492788,9.06207381,2670.0,2669.6,0.11628136]
[1748542492789,9.06207381,2670.0,2669.9,0.20685636]
[1748542493658,9.06207381,2670.0,2669.9,0.20687116]
[1748542493992,9.06207381,2670.0,2669.6,0.11628136]
[1748542494193,5.11907381,2670.0,2669.6,0.11628136]
[1748542494392,9.06107381,2670.0,2669.7,0.20689055]
[1748542494634,9.06107381,2670.0,2669.8,0.2068922]
[1748542494635,4.78130601,2669.9,2669.8,0.2068922]
[1748542494817,1.03584738,2669.9,2669.8,0.20689495]
[1748542495025,7.68739779,2670.0,2669.8,0.20687956]
[1748542495232,7.68739779,2670.0,2669.9,0.20687614]
[1748542495599,3.74547482,2669.9,2669.6,0.11630774]
[1748542495796,3.74547482,2669.9,2669.7,0.2068679]
[1748542495996,3.74547482,2669.9,2669.6,0.11630774]
[1748542496238,3.942,2670.0,2669.6,0.11630774]
[1748542496437,3.74552169,2669.9,2669.6,0.11630774]
[1748542496611,4.46594,2670.0,2669.6,0.11630774]
[1748542496800,3.74573922,2669.7,2669.5,0.11630774]
[1748542497203,4.46594,2670.0,2669.4,0.11630774]
[1748542497459,3.74563996,2669.8,2669.4,0.11630774]
[1748542497835,3.7458482,2669.7,2669.4,0.11630774]
[1748542498046,3.74567561,2669.8,2669.4,0.11630774]
[1748542498245,4.94138696,2669.8,2669.4,0.11630774]
[1748542498548,1.19571135,2669.8,2669.4,0.11630774]
[1748542498752,4.46594,2670.0,2669.4,0.11630774]
[1748542498753,3.74587552,2669.7,2669.4,0.11630774]
[1748542499047,3.74601985,2669.5,2669.4,0.11630896]
[1748542499211,4.94113641,2669.6,2669.0,0.15360624]
[1748542499413,4.94113641,2669.6,2669.1,3.9533687]
[1748542499414,4.94113913,2669.6,2669.1,3.9533687]
[1748542499651,4.94113913,2669.6,2669.1,3.74647164]
[1748542499832,4.94113913,2669.6,2669.0,3.90031942]
[1748542500047,4.94113913,2669.6,2669.1,3.74657056]
[1748542500249,1.1952,2669.6,2669.2,3.74640683]
[1748542501336,1.1952,2669.6,2669.1,3.74650589]
[1748542501529,1.1952,2669.6,2669.2,3.74640889]
[1748542502357,1.1952,2669.6,2669.1,0.15360624]
[1748542502568,1.1952,2669.6,2669.1,3.74647574]
[1748542502768,1.1952,2669.6,2669.0,0.15360624]
[1748542502978,1.1952,2669.6,2669.2,3.74644039]
[1748542503471,3.942,2669.7,2669.2,3.74644039]
[1748542503669,7.68776085,2669.7,2669.2,3.74644039]
[1748542504048,3.74576085,2669.7,2669.2,3.74644039]
[1748542504234,5.00625817,2669.8,2669.3,3.74629891]
[1748542504574,3.942,2669.7,2669.1,0.15360624]
[1748542504774,3.942,2669.7,2669.0,0.15360624]
[1748542504775,3.74645392,2669.2,2669.0,0.15360624]
[1748542504997,3.7462088,2669.4,2669.0,0.15360624]
[1748542504998,3.74637879,2669.3,2669.0,0.15360624]
[1748542505196,5.0151164,2669.4,2668.9,0.34820231]
[1748542505987,3.74636006,2669.3,2668.9,0.34820231]
[1748542506293,5.01512804,2669.4,2668.9,0.34820231]
[1748542506497,5.89124023,2669.4,2668.9,0.34820231]
[1748542507399,2.14501219,2669.4,2668.9,0.34820231]
[1748542507558,3.74637422,2669.3,2668.9,0.34820231]
[1748542507758,3.74651456,2669.2,2668.9,0.34820231]
[1748542507960,3.74664214,2669.1,2668.9,0.34820231]
[1748542508178,3.7465219,2669.2,2668.9,0.34820231]
[1748542508358,5.01512062,2669.4,2668.9,0.34820231]
[1748542508582,3.74630879,2669.3,2668.9,0.34820231]
[1748542508782,1.2689,2669.4,2668.9,0.34820231]
[1748542508969,8.9571267,2669.4,2668.9,0.34820231]
[1748542509171,3.74630766,2669.3,2668.9,0.34820231]
[1748542509587,3.74647585,2669.2,2668.9,0.34820231]
[1748542509792,3.74654449,2669.2,2668.9,0.34820231]
[1748542510095,5.01690055,2669.2,2668.9,0.34820231]
[1748542510300,5.01682727,2669.2,2668.9,0.34820231]
[1748542511158,3.74666286,2669.1,2668.9,0.34820231]
[1748542511401,1.27038269,2669.2,2668.9,0.34820231]
[1748542511558,3.74672161,2669.0,2668.9,0.34820231]
[1748542511997,3.74644088,2669.2,2668.9,0.34820231]
[1748542511998,3.74666048,2669.1,2668.9,0.34820231]
[1748542512204,3.74672161,2669.0,2668.9,0.34820231]
[1748542512375,0.55,2669.3,2668.9,0.34820231]
[1748542512693,3.74659363,2669.1,2668.5,3.74736289]
[1748542513263,4.45137546,2669.1,2668.5,3.74734131]
[1748542513620,4.45137546,2669.1,2668.5,3.747372]
[1748542513621,3.74662243,2669.1,2668.5,3.747372]
[1748542514466,3.74672342,2669.0,2668.5,3.747372]
[1748542514763,3.74665804,2669.1,2668.5,3.747372]
[1748542515294,3.74673499,2669.0,2668.4,3.74749849]
[1748542515670,3.74686874,2668.9,2668.3,3.74762868]
[1748542515995,0.55,2669.3,2668.2,0.15360624]
[1748542515996,3.74715581,2668.7,2668.2,0.15360624]
[1748542516211,3.74711303,2668.8,2668.2,13.7477756]
[1748542516400,1.2506,2669.2,2668.4,1.86911842]
[1748542516560,4.99705421,2669.2,2668.6,3.74714908]
[1748542516762,3.74658895,2669.1,2668.5,3.74736508]
[1748542517376,6.2655884,2669.2,2668.3,3.74765559]
[1748542517557,3.74687967,2668.9,2668.3,3.74763792]
[1748542517763,3.74668691,2669.1,2668.4,13.74753704]
[1748542517764,3.74677881,2669.0,2668.4,13.74753704]
[1748542517971,3.74679884,2669.0,2668.4,3.74750474]
[1748542518584,3.74679884,2669.0,2668.4,13.74750466]
[1748542518998,1.2506,2669.2,2668.2,4.09560624]
[1748542519295,1.2506,2669.2,2668.7,3.74706833]
[1748542519495,1.2506,2669.2,2668.5,3.7472972]
[1748542519496,4.99704486,2669.2,2668.5,3.7472972]
[1748542519694,4.99704486,2669.2,2668.4,20.11059851]
[1748542519898,4.99704486,2669.2,2668.6,3.74722243]
[1748542520114,3.74682789,2669.0,2668.4,3.74756408]
[1748542520318,3.74682789,2669.0,2668.4,3.74749167]
[1748542520681,3.74664563,2669.1,2668.5,3.74741409]
[1748542521516,4.99706515,2669.2,2668.6,3.74723262]
[1748542521813,4.99714281,2669.2,2668.6,3.74723262]
[1748542522014,3.74659678,2669.1,2668.5,3.7473547]
[1748542522215,4.29588161,2669.6,2668.9,3.746739]
[1748542522216,3.7461307,2669.5,2668.9,3.746739]
[1748542522520,1.2539,2669.6,2668.8,5.61608731]
[1748542522521,3.74631582,2669.3,2668.8,1.86911842]
[1748542522722,3.74601985,2669.5,2668.8,1.86911842]
[1748542522883,3.7462237,2669.4,2668.8,1.86911842]
[1748542523084,4.12105957,2669.3,2668.8,1.86911842]
[1748542523288,4.12105957,2669.3,2668.8,11.86911842]
[1748542523519,4.12105957,2669.3,2668.8,10.0]
[1748542523919,4.99982827,2669.6,2669.0,3.74661002]
[1748542524217,4.99982827,2669.6,2668.8,13.74686345]
[1748542524218,1.2539,2669.6,2669.1,3.74648056]
[1748542524418,0.34987735,2670.3,2668.9,3.74677518]
[1748542524419,3.74536154,2670.0,2669.4,3.74612365]
[1748542524630,11.54483987,2670.4,2668.9,3.746862]
[1748542524631,5.00610373,2670.3,2669.3,24.554148]
[1748542524783,5.2022,2670.3,2669.4,23.188]
[1748542525008,5.2022,2670.3,2669.3,3.74626011]
[1748542525009,3.74546783,2669.9,2669.3,3.74624034]
[1748542525214,3.74524927,2670.1,2669.5,3.74598894]
[1748542525511,3.941,2670.2,2669.6,3.74587899]
[1748542525512,3.74510656,2670.2,2669.6,3.74587899]
[1748542525737,1.78142,2670.3,2669.4,10.0]
[1748542525940,5.52632983,2670.3,2669.7,3.74565721]
[1748542526125,5.52632983,2670.3,2669.8,3.7455948]
[1748542526126,1.78142,2670.3,2669.8,3.7455948]
[1748542526331,5.52631934,2670.3,2669.7,3.7456482]
[1748542526632,4.29767684,2670.2,2669.6,3.74581986]
[1748542526834,4.29769981,2670.2,2669.6,10.0]
[1748542527039,3.74517808,2670.1,2669.6,10.0]
[1748542527367,3.74517808,2670.1,2669.6,13.74587894]
[1748542527513,3.74517808,2670.1,2669.6,3.74587894]
[1748542527719,4.72759536,2670.1,2669.5,3.74594287]
[1748542527932,0.98241728,2670.1,2669.6,13.74584939]
[1748542528165,4.72761336,2670.1,2669.5,23.9646183]
[1748542528315,3.74534729,2670.0,2669.5,19.460251]
[1748542528515,4.27338616,2670.0,2669.5,10.2287]
[1748542528966,0.52803887,2670.0,2669.5,10.2287]
[1748542529164,0.55262416,2670.2,2669.6,3.74577791]
[1748542529165,3.74511595,2670.2,2669.6,3.74577791]
[1748542529317,3.74522122,2670.1,2669.5,3.7459704]
[1748542529516,3.74522122,2670.1,2669.6,10.0]
[1748542530943,3.74522122,2670.1,2669.5,3.7459704]
[1748542532054,7.68505794,2670.2,2669.5,3.7459704]
[1748542532239,4.63987039,2670.1,2669.5,3.7459704]
[1748542532440,0.89462579,2670.1,2669.6,3.74583352]
[1748542532694,3.74518251,2670.1,2669.5,3.74594927]
[1748542533369,3.74518251,2670.1,2669.6,10.0]
[1748542534099,3.74518251,2670.1,2669.3,3.74627951]
[1748542534100,3.74538334,2670.0,2669.4,3.74614791]
[1748542534239,3.74538334,2670.0,2669.5,3.7460177]
[1748542534567,3.74538334,2670.0,2669.0,3.74669676]
[1748542534568,1.2819,2669.9,2669.0,0.15360624]
[1748542534753,1.14304529,2670.0,2669.0,3.9002925]
[1748542534754,3.74600025,2669.6,2669.0,3.9002925]
[1748542535105,3.74600025,2669.6,2668.8,5.61606616]
[1748542535106,1.1746,2669.5,2669.1,13.74657637]
[1748542535643,1.1746,2669.5,2669.1,3.74657637]
[1748542536055,1.1746,2669.5,2669.1,13.74657637]
[1748542537444,1.1746,2669.5,2669.1,3.74657637]
[1748542537643,1.1746,2669.5,2668.7,3.939]
[1748542537644,3.74651275,2669.2,2668.7,0.15360624]
[1748542537884,1.1746,2669.5,2669.1,3.74650245]
[1748542538083,1.1746,2669.5,2668.7,1.86911842]
[1748542538084,1.1746,2669.5,2669.2,3.74636438]
[1748542538447,3.74512181,2670.2,2669.5,3.74601985]
[1748542538654,3.74512181,2670.2,2669.2,28.24252]
[1748542538655,1.1751,2670.1,2669.6,3.74582298]
[1748542539388,1.1751,2670.1,2669.2,4.09260624]
[1748542539389,1.1751,2670.1,2669.7,3.74572272]
[1748542539752,1.1751,2670.1,2669.7,3.74566245]
[1748542540177,1.1751,2670.1,2669.5,1.86911842]
[1748542540368,1.1751,2670.1,2669.8,3.7454979]
[1748542540690,1.1751,2670.1,2669.7,3.74567079]
[1748542542291,1.1751,2670.1,2669.7,13.74567079]
[1748542542486,1.1751,2670.1,2669.8,3.74559394]
[1748542542899,1.1751,2670.1,2669.8,3.74559694]
[1748542543055,1.1751,2670.1,2669.6,3.74576178]
[1748542543056,1.2228,2670.5,2669.6,3.74587953]
[1748542543263,1.2228,2670.5,2669.9,10.0]
[1748542543574,3.74490375,2670.3,2669.8,3.74548581]
[1748542543774,8.90541772,2670.5,2669.7,10.0]
[1748542543775,1.2228,2670.1,2669.7,10.0]
[1748542543986,1.2228,2670.1,2669.6,9.9]
[1748542544291,1.2228,2670.1,2669.7,3.74568454]
[1748542544492,1.2228,2670.1,2669.7,13.74568454]
[1748542544789,1.2228,2670.1,2669.7,10.0]
[1748542545195,1.2228,2670.1,2669.7,3.74572468]
[1748542545395,1.2228,2670.1,2669.7,13.74572468]
[1748542546289,1.2228,2670.1,2669.7,10.0]
[1748542546786,1.2228,2670.1,2669.7,3.74569674]
[1748542547097,1.2228,2670.1,2669.7,10.0]
[1748542547468,1.2228,2670.1,2669.7,13.74572433]
[1748542547806,1.2228,2670.1,2669.7,10.0]
[1748542548098,1.2228,2670.1,2669.6,9.06911]
[1748542548396,1.2228,2670.1,2669.4,0.15451383]
[1748542548397,1.2008,2670.0,2669.4,0.15451383]
[1748542548584,4.94617701,2670.0,2669.4,3.74607786]
[1748542548784,1.2008,2670.0,2669.5,3.74593985]
[1748542548964,1.2008,2670.0,2669.6,3.74586267]
[1748542549162,2.08910212,2670.0,2669.6,3.74586267]
[1748542549406,1.2008,2670.0,2669.6,3.74585708]
[1748542549702,1.2008,2670.0,2669.5,3.74594081]
[1748542550221,1.2008,2670.0,2669.5,3.74601985]
[1748542550423,1.2008,2670.0,2669.6,3.74587675]
[1748542550594,1.2008,2670.0,2669.3,0.15451383]
[1748542550782,1.2008,2670.0,2669.7,3.74568085]
[1748542551918,1.2008,2670.0,2669.7,3.74573544]
[1748542552319,1.2008,2670.0,2669.4,0.15451383]
[1748542552617,8.89811909,2670.3,2669.7,3.74561981]
[1748542552986,1.2162,2670.3,2669.8,3.74559892]
[1748542553219,1.2162,2670.3,2669.7,3.74569281]
[1748542553429,4.96110719,2670.3,2669.8,3.74553712]
[1748542553585,4.63486874,2670.2,2669.7,10.0]
[1748542553784,4.63486874,2670.2,2669.6,3.90031359]
[1748542553785,3.74518335,2670.1,2669.6,3.90038734]
[1748542554117,4.63490951,2670.2,2669.6,3.74587351]
[1748542554324,0.88981072,2670.2,2669.5,0.15451383]
[1748542554509,0.88981072,2670.2,2669.6,3.74585594]
[1748542554510,4.96149917,2670.1,2669.6,3.74585594]
[1748542554821,0.58513099,2670.0,2669.6,3.74585594]
[1748542555322,1.2162,2669.9,2669.5,0.15451383]
[1748542555526,1.2162,2669.9,2669.5,3.90049613]
[1748542555697,3.74565966,2669.8,2669.4,0.15451383]
[1748542555900,3.74565966,2669.8,2669.3,0.15451383]
[1748542556101,1.32283443,2669.8,2669.3,3.90075484]
[1748542556287,5.06850245,2669.8,2669.3,10.15451383]
[1748542556483,5.06851227,2669.8,2669.3,3.90080139]
[1748542556688,5.06851227,2669.8,2669.3,13.90080139]
[1748542556920,5.06851227,2669.8,2669.3,3.90080139]
[1748542557083,1.32283443,2669.8,2669.3,3.90080139]
[1748542557289,1.32283443,2669.8,2669.3,13.74628756]
[1748542557488,1.32283443,2669.8,2669.3,13.74621983]
[1748542557695,5.06843959,2669.8,2669.3,3.74621983]
[1748542557891,4.37424689,2669.7,2669.3,10.0]
[1748542558097,4.37424689,2669.7,2669.2,0.15451383]
[1748542558098,1.2132,2669.5,2669.2,0.15451383]
[1748542558407,1.2132,2669.5,2668.9,3.90136084]
[1748542558604,1.2132,2669.5,2669.0,3.74662046]
[1748542558857,1.2132,2669.5,2669.1,3.74650746]
[1748542559334,1.2132,2669.5,2669.1,3.86291456]
[1748542559536,4.95923016,2669.5,2669.1,0.1164071]
[1748542559738,1.2132,2669.5,2669.1,0.1164071]
[1748542560033,4.95923684,2669.5,2669.1,0.1164071]
[1748542560253,1.2132,2669.5,2669.1,0.1164071]
[1748542560423,1.2132,2669.5,2669.2,3.7463365]
[1748542560745,3.74547689,2669.9,2669.2,3.7463365]
[1748542560746,3.936,2669.8,2669.2,3.7463365]
[1748542560946,3.936,2669.8,2669.3,3.746222]
[1748542561135,1.2917,2669.7,2669.3,0.11637345]
[1748542561347,1.2917,2669.7,2669.3,3.86265716]
[1748542561566,1.2917,2669.7,2669.3,0.11637345]
[1748542562043,1.2917,2669.7,2669.3,3.86266229]
[1748542562245,5.03753265,2669.7,2669.3,0.11637345]
[1748542562432,1.2917,2669.7,2669.3,0.11637345]
[1748542562644,1.2917,2670.0,2669.7,3.74571598]
[1748542562816,1.2917,2670.3,2669.8,3.74552619]
[1748542563015,1.2917,2670.3,2669.5,1.86911842]
[1748542563016,1.2917,2670.3,2669.7,0.11637345]
[1748542563214,1.81447,2670.3,2669.7,0.11637345]
[1748542563450,3.7452597,2670.1,2669.7,0.11637345]
[1748542563650,1.2917,2669.9,2669.6,0.11637345]
[1748542564371,1.2917,2669.9,2669.7,0.11637345]
[1748542564580,1.2917,2669.9,2669.5,3.90039405]
[1748542564873,1.2917,2669.9,2669.6,0.11631121]
[1748542565362,1.2917,2669.9,2669.6,3.86217937]
[1748542565570,1.2917,2669.9,2669.6,0.11631121]
[1748542566961,1.2917,2669.9,2669.7,3.74566034]
[1748542567119,1.2917,2669.9,2669.7,3.86193374]
[1748542567320,1.2917,2669.9,2669.7,3.86199867]
[1748542567543,3.74513408,2670.2,2669.7,3.86199867]
[1748542567544,1.2362,2670.2,2669.8,3.74549609]
[1748542568116,4.98126765,2670.2,2669.8,0.11628984]
[1748542568319,4.98126765,2670.2,2669.7,0.11628984]
[1748542568518,4.98126765,2670.2,2669.6,3.74581322]
[1748542568519,3.74519358,2670.1,2669.8,0.11628984]
[1748542569019,4.98130644,2670.2,2669.8,0.11628839]
[1748542569873,4.98130644,2670.2,2669.9,3.74538405]
[1748542569874,1.2362,2670.2,2669.9,3.74538405]
[1748542570019,1.2362,2670.2,2669.9,0.11628839]
[1748542570423,3.74519617,2670.1,2669.8,0.11628839]
[1748542570641,4.98125841,2670.2,2669.8,0.11628839]
[1748542571156,1.2362,2670.2,2669.8,0.11628839]
[1748542571656,4.98132041,2670.2,2669.8,0.11628839]
[1748542571844,1.2362,2670.2,2669.8,0.11628839]
[1748542572016,4.98132227,2670.2,2669.8,0.11628839]
[1748542572219,1.2362,2670.2,2669.8,3.86185756]
[1748542572543,1.2362,2670.2,2669.8,0.51792553]
[1748542572752,1.2362,2670.2,2669.9,3.74539237]
[1748542572951,1.2362,2670.2,2669.9,3.86168076]
[1748542573354,1.2362,2670.2,2669.9,3.86164865]
[1748542573559,1.2362,2670.2,2669.9,0.11625628]
[1748542574066,3.74523886,2670.1,2669.8,0.11625628]
[1748542574366,1.2362,2670.2,2669.9,3.74543912]
[1748542574571,1.2362,2670.2,2669.9,3.8616954]
[1748542575134,1.2362,2670.2,2670.1,3.74517808]
[1748542575372,0.44817329,2670.7,2670.6,3.74447689]
[1748542575886,0.44817329,2670.7,2670.5,3.86077498]
[1748542576692,0.44817329,2670.7,2670.4,0.11625628]
[1748542576919,0.44817329,2670.7,2670.4,3.8609862]
[1748542577231,0.44817329,2670.7,2670.5,3.86085693]
[1748542577434,0.44817329,2670.7,2670.6,0.20646624]
[1748542577746,0.44817329,2670.7,2670.6,0.20636492]
[1748542577897,0.44817329,2670.7,2670.5,3.74455494]
[1748542578231,0.44817329,2670.7,2670.6,0.20634749]
[1748542578403,0.44817329,2670.7,2670.6,0.20634768]
[1748542578610,0.44817329,2670.7,2670.6,0.20634648]
[1748542579118,0.44817329,2670.7,2670.6,0.20629164]
[1748542579325,0.44817329,2670.7,2670.4,3.8608286]
[1748542579508,0.44817329,2670.7,2670.5,3.95088962]
[1748542579702,0.44817329,2670.7,2670.6,0.20628857]
[1748542579897,0.44817329,2670.7,2670.6,0.20623262]
[1748542580230,0.44817329,2670.7,2670.5,3.74459348]
[1748542580527,0.44817329,2670.7,2670.6,0.2062101]
[1748542580730,0.44817329,2670.7,2670.6,0.20622857]
[1748542581030,0.44817329,2670.7,2670.6,0.20624807]
[1748542581434,0.44817329,2670.7,2670.3,0.11614843]
[1748542581635,0.44817329,2670.7,2670.5,3.7445785]
[1748542581948,0.44817329,2670.7,2670.6,0.20627133]
[1748542582300,0.44817329,2670.7,2670.6,0.20624742]
[1748542582499,0.44817329,2670.7,2670.6,3.95072366]
[1748542583045,0.44817329,2670.7,2670.6,3.74447689]
[1748542583246,0.44817329,2670.7,2670.6,4.19792458]
[1748542583803,0.44817329,2670.7,2670.6,28.06350758]
[1748542584226,0.44817329,2670.7,2670.6,27.63467758]
[1748542584835,0.44817329,2670.7,2670.6,27.75071118]
[1748542585535,0.44817329,2670.7,2670.6,26.07331118]
[1748542585736,0.44817329,2670.7,2670.6,25.33739118]
[1748542586095,0.44817329,2670.7,2670.6,25.22135758]
[1748542586300,0.44817329,2670.7,2670.6,25.3373445]
[1748542586502,0.44817329,2670.7,2670.6,23.99788658]
[1748542586731,0.44817329,2670.7,2670.6,23.23101958]
[1748542588138,0.44817329,2670.7,2670.6,20.27443158]
[1748542588340,0.44817329,2670.7,2670.6,3.93940514]
[1748542588503,0.44817329,2670.7,2670.6,13.74447689]
[1748542588838,0.44817329,2670.7,2670.5,3.8605399]
[1748542588839,0.44817329,2670.7,2670.5,3.86051131]
[1748542589042,0.44817329,2670.7,2670.6,13.74447689]
[1748542589406,0.44817329,2670.7,2670.6,3.74447689]
[1748542589901,0.44817329,2670.7,2670.6,13.74447689]
[1748542590101,0.44817329,2670.7,2670.6,3.74447689]
[1748542592427,0.44817329,2670.7,2670.6,13.74447689]
[1748542592707,0.44817329,2670.7,2670.6,3.74447689]
[1748542593540,0.44817329,2670.7,2670.6,13.74447689]
[1748542593744,0.44817329,2670.7,2670.6,3.86048187]
[1748542593942,0.44817329,2670.7,2670.6,3.74447689]
[1748542594151,0.44817329,2670.7,2670.6,3.86048187]
[1748542594806,0.44817329,2670.7,2670.6,3.86053733]
[1748542595354,0.44817329,2670.7,2670.6,4.06710096]
[1748542595513,0.44817329,2670.7,2670.6,4.06710026]
[1748542595707,0.44817329,2670.7,2670.6,10.32262357]
[1748542595937,0.44817329,2670.7,2670.6,4.06710066]
[1748542596442,0.44817329,2670.7,2670.6,0.32262377]
[1748542596655,0.44817329,2670.7,2670.5,0.11606044]
[1748542596656,0.86740089,2670.7,2670.5,0.11606044]
[1748542596808,0.44817329,2670.7,2670.6,0.2066797]
[1748542597013,0.44817329,2670.7,2670.6,0.20668004]
[1748542597260,0.44817329,2670.7,2670.5,3.74461298]
[1748542597550,0.44817329,2670.7,2670.6,0.20668576]
[1748542597861,0.44817329,2670.7,2670.6,3.74447689]
[1748542598011,0.44817329,2670.7,2670.6,3.95114749]
[1748542598529,0.44817329,2670.7,2670.6,13.95117267]
[1748542598730,0.44817329,2670.7,2670.6,13.86053733]
[1748542598920,0.44817329,2670.7,2670.6,4.0672964]
[1748542599127,0.44817329,2670.7,2670.6,4.06741198]
[1748542599339,0.44817329,2670.7,2670.6,4.06741457]
[1748542599736,0.44817329,2670.7,2670.6,14.06752135]
[1748542600168,0.44817329,2670.7,2670.6,4.06755842]
[1748542600327,0.44817329,2670.7,2670.6,14.06755576]
[1748542600523,0.44817329,2670.7,2670.6,3.86065105]
[1748542600727,0.44817329,2670.7,2670.6,13.86065105]
[1748542600928,0.44817329,2670.7,2670.6,14.06755951]
[1748542601128,0.44817329,2670.7,2670.6,14.06757219]
[1748542601571,0.44817329,2670.7,2670.6,0.3230953]
[1748542601880,0.44817329,2670.7,2670.6,0.323121]
[1748542602182,0.44817329,2670.7,2670.6,0.32312348]
[1748542602483,0.44817329,2670.7,2670.6,0.32311728]
[1748542602691,1.76357329,2670.7,2670.6,0.32311728]
[1748542602830,1.76357329,2670.7,2670.6,0.32312734]
[1748542603374,1.76357329,2670.7,2670.6,0.32317187]
[1748542603537,1.76357329,2670.7,2670.6,0.32337904]
[1748542603880,0.44817329,2670.7,2670.6,3.9514746]
[1748542604039,0.44817329,2670.7,2670.6,0.20708368]
[1748542604241,0.44817329,2670.7,2670.6,4.06798714]
[1748542604561,0.44817329,2670.7,2670.6,3.95171952]
[1748542604735,0.44817329,2670.7,2670.6,0.20724263]
[1748542605390,0.44817329,2670.7,2670.6,0.20725741]
[1748542605737,0.44817329,2670.7,2670.5,0.15451383]
[1748542605738,2.27836783,2670.7,2670.5,0.15451383]
[1748542605945,5.47520998,2670.7,2670.6,0.2073681]
[1748542607293,5.47520998,2670.7,2670.4,0.11655358]
[1748542607492,5.47520998,2670.7,2670.5,0.20728928]
[1748542607714,1.73087329,2670.7,2670.6,0.20726037]
[1748542607991,5.47520998,2670.7,2670.6,0.2072296]
[1748542608879,5.47520998,2670.7,2670.6,0.20719141]
[1748542609081,5.47520998,2670.7,2670.6,0.20718858]
[1748542609082,3.04571652,2670.7,2670.6,0.20718858]
[1748542609295,6.79011385,2670.7,2670.4,0.11651003]
[1748542609615,6.79011385,2670.7,2670.1,3.89961737]
[1748542609616,6.79011385,2670.7,2670.3,0.11651003]
[1748542609617,3.74475733,2670.4,2670.3,0.11651003]